bitfinex/quotes_BTCUSD_20241203
["timestamp","ask_amount","ask_price","bid_price","bid_amount"]
[1733245488254,0.00017651,95342.0,95336.0,0.31449559]
[1733245488512,0.00017651,95342.0,95336.0,0.10471259]
[1733245489384,0.20994851,95342.0,95336.0,0.10471259]
[1733245489599,0.00232054,95341.0,95336.0,0.001]
[1733245489852,0.209778,95339.0,95336.0,0.001]
[1733245490295,0.209778,95339.0,95336.0,0.003]
[1733245490515,0.00017651,95342.0,95336.0,0.001]
[1733245490733,0.209773,95341.0,95336.0,0.001]
[1733245491220,0.00017651,95342.0,95337.0,0.10471259]
[1733245491451,0.00017651,95342.0,95338.0,0.290779]
[1733245491685,0.00017651,95342.0,95339.0,0.10471259]
[1733245492161,0.00017651,95342.0,95340.0,0.209775]
[1733245492407,0.00017651,95342.0,95341.0,0.10656894]
[1733245492870,0.00017651,95342.0,95341.0,0.10471259]
[1733245493814,0.00017651,95342.0,95341.0,0.10671259]
[1733245494497,0.00017651,95342.0,95341.0,0.10471259]
[1733245494947,0.00017651,95342.0,95341.0,0.004]
[1733245495397,0.00017651,95342.0,95341.0,0.003]
[1733245495627,0.00017651,95342.0,95341.0,0.006]
[1733245495847,0.00017651,95342.0,95341.0,0.00337623]
[1733245496071,0.00017651,95342.0,95341.0,0.00037623]
[1733245496517,0.00017651,95342.0,95341.0,0.002]
[1733245496980,0.00017651,95342.0,95341.0,0.007]
[1733245497188,0.00017651,95342.0,95341.0,0.002]
[1733245497644,0.00017651,95342.0,95341.0,0.11271259]
[1733245497862,0.00017651,95342.0,95341.0,0.10871259]
[1733245498306,0.00017651,95342.0,95341.0,0.10471259]
[1733245498748,0.00017651,95342.0,95341.0,0.10971259]
[1733245499238,0.00017651,95342.0,95341.0,0.11871259]
[1733245499462,0.00017651,95342.0,95341.0,0.005]
[1733245499692,0.00017651,95342.0,95341.0,0.014]
[1733245500398,0.00249732,95342.0,95341.0,0.014]
[1733245500876,0.00249732,95342.0,95337.0,0.0017236]
[1733245500877,0.023,95338.0,95337.0,0.0017236]
[1733245501124,0.28003397,95338.0,95337.0,0.0017236]
[1733245501371,0.27771259,95338.0,95337.0,0.0017236]
[1733245503036,0.173,95338.0,95337.0,0.0017236]
[1733245503527,0.15232121,95338.0,95337.0,0.0027236]
[1733245503761,0.16132121,95338.0,95337.0,0.0027236]
[1733245505132,0.18432121,95338.0,95337.0,0.0027236]
[1733245506063,0.16132121,95338.0,95337.0,0.0027236]
[1733245507637,0.01132121,95338.0,95337.0,0.0027236]
[1733245507891,0.009,95338.0,95337.0,0.0027236]
[1733245508359,0.009,95338.0,95337.0,0.10743619]
[1733245508584,0.009,95338.0,95337.0,0.0027236]
[1733245508820,0.01532081,95338.0,95337.0,0.0027236]
[1733245509054,0.04195839,95338.0,95337.0,0.0027236]
[1733245509352,0.01132081,95338.0,95337.0,0.0027236]
[1733245509804,0.15232081,95338.0,95337.0,0.0017236]
[1733245510264,0.15432081,95338.0,95337.0,0.0017236]
[1733245510530,0.15232081,95338.0,95337.0,0.0017236]
[1733245510768,0.15232081,95338.0,95337.0,0.0027236]
[1733245511004,0.18094202,95338.0,95337.0,0.0027236]
[1733245511233,0.30665461,95338.0,95337.0,0.0017236]
[1733245511460,0.5043338,95338.0,95337.0,0.0017236]
[1733245511688,0.5123338,95338.0,95337.0,0.0017236]
[1733245512175,0.5093338,95338.0,95337.0,0.0017236]
[1733245512896,0.5133338,95338.0,95337.0,0.0017236]
[1733245513132,0.5083338,95338.0,95337.0,0.0017236]
[1733245513366,0.5163338,95338.0,95337.0,6e-07]
[1733245513598,0.7163338,95338.0,95337.0,6e-07]
[1733245514559,0.782795,95331.0,95330.0,0.0017236]
[1733245514795,0.782795,95331.0,95293.0,0.0797]
[1733245514796,0.19039845,95316.0,95293.0,0.0797]
[1733245515050,0.382848,95307.0,95285.0,0.0797]
[1733245515276,0.48756059,95307.0,95285.0,0.0797]
[1733245516500,0.48756059,95307.0,95306.0,0.00231168]
[1733245517431,0.48856059,95307.0,95306.0,0.00231168]
[1733245517909,0.71833297,95307.0,95306.0,0.00231168]
[1733245518141,0.71433297,95307.0,95306.0,0.00231168]
[1733245518363,0.72233297,95307.0,95306.0,0.00231168]
[1733245518874,0.71633297,95307.0,95306.0,0.00231168]
[1733245519123,0.72433297,95307.0,95306.0,0.00231168]
[1733245519350,0.72233297,95307.0,95306.0,0.00231168]
[1733245519830,0.52233297,95307.0,95306.0,0.00231168]
[1733245520081,0.72233297,95307.0,95306.0,0.00231168]
[1733245520515,0.52233297,95307.0,95306.0,0.00231168]
[1733245520744,0.72633297,95307.0,95306.0,0.00231168]
[1733245522689,0.52633297,95307.0,95306.0,0.00231168]
[1733245523143,0.39862038,95307.0,95306.0,0.00231168]
[1733245524559,0.221848,95307.0,95306.0,0.00231168]
[1733245524780,0.012,95307.0,95306.0,0.00231168]
[1733245525014,0.01432156,95307.0,95306.0,0.00231168]
[1733245525240,0.02532156,95307.0,95306.0,0.00231168]
[1733245525699,0.02932156,95307.0,95306.0,0.00231168]
[1733245526172,0.02832156,95307.0,95306.0,0.00231168]
[1733245526849,0.02532156,95307.0,95306.0,0.00231168]
[1733245527304,0.02932156,95307.0,95306.0,0.00231168]
[1733245527549,0.15,95308.0,95306.0,0.00531168]
[1733245527799,0.209844,95309.0,95306.0,0.00531168]
[1733245527800,0.21216956,95307.0,95306.0,0.00531168]
[1733245528046,0.23516956,95307.0,95306.0,0.00231168]
[1733245528271,0.232848,95307.0,95306.0,0.00231168]
[1733245528564,0.232848,95307.0,95306.0,0.00331168]
[1733245528817,0.382848,95307.0,95306.0,0.00331168]
[1733245532052,0.36373462,95307.0,95306.0,0.00331168]
[1733245533445,0.36573462,95307.0,95306.0,0.00331168]
[1733245533699,0.36573462,95307.0,95306.0,0.00231168]
[1733245533924,0.36473462,95307.0,95306.0,0.00231168]
[1733245534156,0.36673462,95307.0,95306.0,0.00231168]
[1733245534366,0.36573462,95307.0,95306.0,0.00231168]
[1733245534823,0.36373462,95307.0,95306.0,0.00231168]
[1733245535307,0.36473462,95307.0,95306.0,0.00231168]
[1733245537837,0.36373462,95307.0,95306.0,0.00231168]
[1733245538060,0.36673462,95307.0,95306.0,0.00231168]
[1733245538519,0.36773462,95307.0,95306.0,0.00231168]
[1733245539039,0.47244721,95307.0,95306.0,0.00231168]
[1733245539262,0.67244721,95307.0,95306.0,0.00231168]
[1733245539480,0.69144721,95307.0,95306.0,0.00231168]
[1733245539950,0.69444721,95307.0,95306.0,0.00231168]
[1733245540177,0.69444721,95307.0,95281.0,0.0017236]
[1733245540178,0.15,95282.0,95281.0,0.0017236]
[1733245540433,0.15,95282.0,95281.0,0.00190045]
[1733245540434,0.25703502,95282.0,95281.0,0.00190045]
[1733245540668,0.4815968,95282.0,95281.0,0.00190045]
[1733245541155,0.6815968,95282.0,95281.0,4.5e-07]
[1733245541421,0.782916,95276.0,95275.0,5e-08]
[1733245541649,0.88762859,95276.0,95275.0,5e-08]
[1733245541887,0.8917756,95276.0,95275.0,5e-08]
[1733245543469,0.9007756,95276.0,95275.0,5e-08]
[1733245543698,0.8917756,95276.0,95275.0,5e-08]
[1733245544196,0.9007756,95276.0,95275.0,5e-08]
[1733245544413,0.9067756,95276.0,95275.0,0.00100005]
[1733245544632,0.9008156,95276.0,95275.0,0.00100005]
[1733245545860,0.8948156,95276.0,95275.0,5e-08]
[1733245546085,0.8768156,95276.0,95275.0,5e-08]
[1733245546297,0.8818156,95276.0,95275.0,5e-08]
[1733245546769,0.8818156,95276.0,95257.0,6e-07]
[1733245546770,0.582956,95258.0,95257.0,6e-07]
[1733245547002,0.582956,95258.0,95257.0,6.9e-07]
[1733245547003,0.87270859,95258.0,95257.0,6.9e-07]
[1733245547439,0.87684214,95258.0,95257.0,6.9e-07]
[1733245547928,0.88384214,95258.0,95257.0,6.9e-07]
[1733245549239,0.87684214,95258.0,95257.0,6.9e-07]
[1733245549459,0.88184214,95258.0,95257.0,6.9e-07]
[1733245549689,0.89084214,95258.0,95257.0,6.9e-07]
[1733245552489,0.91843254,95258.0,95257.0,6.9e-07]
[1733245552710,0.71843254,95258.0,95257.0,6.9e-07]
[1733245553198,0.36039254,95258.0,95257.0,0.00086249]
[1733245553845,0.00448151,95257.0,95251.0,0.0786]
[1733245554056,0.3169956,95256.0,95251.0,0.0786]
[1733245554267,0.209969,95252.0,95251.0,0.0786]
[1733245554559,0.359969,95252.0,95251.0,0.0786]
[1733245554779,0.36401242,95252.0,95251.0,0.0786]
[1733245556331,0.37101242,95252.0,95251.0,0.0786]
[1733245556767,0.37401242,95252.0,95251.0,0.0786]
[1733245560406,0.209973,95250.0,95249.0,0.0497]
[1733245560628,0.209989,95243.0,95242.0,0.0017236]
[1733245560855,0.4940562,95243.0,95242.0,0.0017236]
[1733245561107,0.49173279,95243.0,95242.0,0.0017236]
[1733245561363,0.3640202,95243.0,95242.0,0.0017236]
[1733245561592,0.1540312,95243.0,95242.0,0.0978836]
[1733245561820,0.1540312,95243.0,95242.0,0.3531746]
[1733245561821,0.0040312,95243.0,95242.0,0.3531746]
[1733245562077,0.00448151,95257.0,95250.0,0.09616]
[1733245562306,0.00448151,95257.0,95256.0,0.01496]
[1733245562536,0.00448151,95257.0,95256.0,0.14146]
[1733245562988,0.00984824,95257.0,95256.0,0.14146]
[1733245563727,0.01217086,95257.0,95256.0,0.1285]
[1733245563947,0.16217086,95257.0,95256.0,0.0832]
[1733245564196,0.26688399,95257.0,95256.0,0.002]
[1733245564441,0.26456083,95257.0,95256.0,0.002]
[1733245564930,0.023,95256.0,95243.0,0.0453]
[1733245565149,0.359986,95244.0,95243.0,0.0453]
[1733245565352,0.359986,95244.0,95237.0,0.0812]
[1733245565353,0.15,95243.0,95237.0,0.0812]
[1733245565599,0.15232327,95243.0,95237.0,0.0812]
[1733245565812,0.157785,95243.0,95237.0,0.0812]
[1733245566520,0.180785,95243.0,95237.0,0.0812]
[1733245566971,0.181785,95243.0,95237.0,0.0812]
[1733245567427,0.183785,95243.0,95237.0,0.0812]
[1733245568365,0.21124038,95243.0,95237.0,0.0812]
[1733245568835,0.20891711,95243.0,95237.0,0.0812]
[1733245569061,0.21124034,95243.0,95237.0,0.0812]
[1733245569502,0.21124034,95243.0,95242.0,0.0015563]
[1733245573389,0.18824034,95243.0,95242.0,0.0015563]
[1733245574110,0.3136297,95243.0,95242.0,0.0015563]
[1733245574344,0.3136297,95243.0,95242.0,3e-07]
[1733245574568,0.3136297,95243.0,95240.0,9e-07]
[1733245574569,0.55804,95241.0,95240.0,9e-07]
[1733245574797,0.55804,95241.0,95220.0,0.0017232]
[1733245574798,0.568046,95235.0,95234.0,3e-07]
[1733245575090,0.67275859,95235.0,95234.0,3e-07]
[1733245575337,0.67693155,95235.0,95234.0,3e-07]
[1733245575812,0.49189155,95235.0,95234.0,3e-07]
[1733245576365,0.49989155,95235.0,95234.0,3e-07]
[1733245576586,0.50389155,95235.0,95234.0,3e-07]
[1733245577800,0.35389155,95235.0,95234.0,3e-07]
[1733245578268,0.53893155,95235.0,95234.0,3e-07]
[1733245578501,0.233037,95221.0,95220.0,0.0017232]
[1733245578753,0.33774959,95221.0,95220.0,0.0017232]
[1733245579232,0.210059,95211.0,95210.0,0.0017232]
[1733245579453,0.23538307,95211.0,95210.0,0.0017232]
[1733245579671,0.3419083,95211.0,95210.0,0.00231303]
[1733245580329,0.3419083,95211.0,95195.0,0.0763]
[1733245580526,0.023,95199.0,95195.0,0.00017699]
[1733245580735,0.210092,95196.0,95195.0,0.00017699]
[1733245580951,0.34012916,95196.0,95195.0,0.00017699]
[1733245581144,0.34191738,95196.0,95195.0,0.00017699]
[1733245581700,0.360108,95190.0,95179.0,0.0017254]
[1733245581912,0.210124,95182.0,95179.0,0.00190193]
[1733245582118,0.210128,95180.0,95179.0,0.00190193]
[1733245582331,0.21245277,95180.0,95179.0,0.00190193]
[1733245582559,0.21656523,95180.0,95179.0,0.00190193]
[1733245583499,0.24365323,95180.0,95179.0,0.00190193]
[1733245583727,0.24132846,95180.0,95179.0,0.00190193]
[1733245584599,0.24532846,95180.0,95179.0,0.00190193]
[1733245585044,0.24732846,95180.0,95179.0,0.00190193]
[1733245586154,0.37504105,95180.0,95179.0,0.00190193]
[1733245586397,0.56008105,95180.0,95179.0,0.00190193]
[1733245587513,0.55608105,95180.0,95179.0,0.00190193]
[1733245587986,0.56208105,95180.0,95179.0,0.00190193]
[1733245588194,0.56608105,95180.0,95179.0,0.00190193]
[1733245588409,0.76608105,95180.0,95179.0,0.00190193]
[1733245588873,0.76608105,95180.0,95179.0,1.00190193]
[1733245591287,0.76608105,95180.0,95179.0,0.98088893]
[1733245591520,0.76608105,95180.0,95179.0,0.89683693]
[1733245591886,0.76608105,95180.0,95179.0,0.79012269]
[1733245591887,0.81462994,95180.0,95179.0,0.79012269]
[1733245592089,0.80662994,95180.0,95179.0,0.76910969]
[1733245592271,1.29238105,95180.0,95179.0,0.76880106]
[1733245592473,1.30138105,95180.0,95179.0,0.76880106]
[1733245592672,1.29738105,95180.0,95179.0,0.66373606]
[1733245592906,1.29738105,95180.0,95179.0,0.58398383]
[1733245593534,1.29738105,95180.0,95179.0,0.79398383]
[1733245593738,1.39121251,95180.0,95179.0,0.67186058]
[1733245594143,1.40721251,95180.0,95179.0,0.62752104]
[1733245594645,1.40921251,95180.0,95179.0,0.60650804]
[1733245594800,1.40921251,95180.0,95179.0,0.58549504]
[1733245595012,0.595236,95149.0,95148.0,0.00838014]
[1733245595242,0.595236,95149.0,95148.0,0.00251908]
[1733245595243,0.7045003,95149.0,95148.0,0.00251908]
[1733245595616,0.38504,95147.0,95146.0,6.8e-07]
[1733245595816,0.49429325,95147.0,95146.0,6.8e-07]
[1733245596347,0.51729325,95147.0,95146.0,6.8e-07]
[1733245597413,0.5441711,95147.0,95146.0,6.8e-07]
[1733245597655,0.5441711,95147.0,95107.0,0.0469]
[1733245597656,0.38504,95115.0,95114.0,2.8e-07]
[1733245597871,0.72755039,95115.0,95114.0,0.0005907]
[1733245598114,0.72755039,95115.0,95114.0,7e-07]
[1733245598783,0.83038185,95115.0,95114.0,7e-07]
[1733245598997,0.39538,95084.0,95083.0,0.0008627]
[1733245599249,0.70009259,95084.0,95083.0,0.00103996]
[1733245599519,0.70453092,95084.0,95083.0,0.00103996]
[1733245600470,0.73155539,95084.0,95083.0,0.00103996]
[1733245601112,0.34651539,95084.0,95083.0,0.00103996]
[1733245601329,0.35551539,95084.0,95083.0,0.00103996]
[1733245601569,0.35951539,95084.0,95083.0,0.00103996]
[1733245602087,0.54455539,95084.0,95083.0,0.00103996]
[1733245605246,0.35951539,95084.0,95083.0,0.00103996]
[1733245605478,0.40163339,95084.0,95083.0,0.00103996]
[1733245606466,0.35951539,95084.0,95083.0,0.00103996]
[1733245606735,0.40163239,95084.0,95083.0,0.00103996]
[1733245607251,0.35951539,95084.0,95083.0,0.00103996]
[1733245608105,0.36215357,95084.0,95083.0,0.00103996]
[1733245610438,0.36215357,95084.0,95083.0,0.12713996]
[1733245611171,0.36215357,95084.0,95083.0,0.00103996]
[1733245615063,0.36035559,95084.0,95083.0,0.00103996]
[1733245617323,0.36035559,95084.0,95083.0,1.00103996]
[1733245619633,0.36035559,95084.0,95083.0,1.00082388]
[1733245621191,0.54539559,95084.0,95083.0,0.95875588]
[1733245621429,0.54539559,95084.0,95083.0,0.89565388]
[1733245621430,0.74539559,95084.0,95083.0,0.89565388]
[1733245621634,0.74539559,95084.0,95083.0,0.89265658]
[1733245621848,0.76839559,95084.0,95083.0,0.78748658]
[1733245622808,0.75939559,95084.0,95083.0,0.78748658]
[1733245623018,0.76839559,95084.0,95083.0,0.74541858]
[1733245623478,0.76439559,95084.0,95083.0,0.68318058]
[1733245623688,0.77239559,95084.0,95083.0,0.63776616]
[1733245623938,0.77239559,95084.0,95083.0,0.56679114]
[1733245624154,0.76439559,95084.0,95083.0,0.56679114]
[1733245624568,0.77339559,95084.0,95083.0,0.56679114]
[1733245625027,1.30769559,95084.0,95083.0,0.48265514]
[1733245625251,1.30769559,95084.0,95083.0,0.46162114]
[1733245625695,0.87622705,95084.0,95083.0,0.46162114]
[1733245625936,1.41052705,95084.0,95083.0,0.35645114]
[1733245626142,2.12597266,95084.0,95083.0,0.35645114]
[1733245626586,2.11697266,95084.0,95083.0,0.35645114]
[1733245626806,2.11697266,95084.0,95083.0,0.24036048]
[1733245627011,2.0141412,95084.0,95083.0,0.16322713]
[1733245627662,2.0231412,95084.0,95083.0,0.14219313]
[1733245627876,2.0321412,95084.0,95083.0,0.05805713]
[1733245628138,2.01669559,95084.0,95083.0,0.05805713]
[1733245628364,1.09369559,95084.0,95083.0,0.05805713]
[1733245628610,1.09369559,95084.0,95083.0,0.05466729]
[1733245628611,1.29369559,95084.0,95083.0,0.05466729]
[1733245628871,1.29535092,95084.0,95083.0,0.05466729]
[1733245629299,1.27735092,95084.0,95083.0,0.05466729]
[1733245629521,0.54305092,95084.0,95083.0,0.05466729]
[1733245629772,0.36701092,95084.0,95083.0,0.05466729]
[1733245629993,0.35801092,95084.0,95083.0,0.05466729]
[1733245630249,0.34901092,95084.0,95083.0,0.05466729]
[1733245630508,0.35801092,95084.0,95083.0,0.05466729]
[1733245630999,0.34901092,95084.0,95083.0,0.05466729]
[1733245631214,0.35901092,95084.0,95083.0,0.05466729]
[1733245631460,0.35001092,95084.0,95083.0,0.05466729]
[1733245631936,0.34901092,95084.0,95083.0,0.05466729]
[1733245632861,0.53405092,95084.0,95083.0,0.05466729]
[1733245633375,0.73405092,95084.0,95083.0,2.9e-07]
[1733245633614,0.75705092,95084.0,95083.0,2.9e-07]
[1733245634283,0.74405092,95084.0,95083.0,2.9e-07]
[1733245634510,0.54405092,95084.0,95083.0,2.9e-07]
[1733245634763,0.53405092,95084.0,95083.0,2.9e-07]
[1733245635015,0.54477952,95084.0,95083.0,2.9e-07]
[1733245635219,0.35973952,95084.0,95083.0,2.9e-07]
[1733245635435,0.35973952,95084.0,95083.0,0.04600029]
[1733245636128,0.36873952,95084.0,95083.0,0.04600029]
[1733245636372,0.35073952,95084.0,95083.0,0.04600029]
[1733245636588,0.36873952,95084.0,95083.0,0.04600029]
[1733245638594,0.51873952,95084.0,95083.0,0.04600029]
[1733245640906,0.51873952,95084.0,95083.0,0.12860029]
[1733245641684,0.36873952,95084.0,95083.0,0.12860029]
[1733245642405,0.35973952,95084.0,95083.0,0.12860029]
[1733245642673,0.35673952,95084.0,95083.0,0.12860029]
[1733245642933,0.51573952,95084.0,95083.0,0.12860029]
[1733245643185,0.50073952,95084.0,95083.0,0.12860029]
[1733245643399,0.50373952,95084.0,95083.0,0.12860029]
[1733245643625,0.26337505,95084.0,95083.0,0.12860029]
[1733245643867,0.37650202,95100.0,95083.0,0.12860029]
[1733245643868,0.210324,95091.0,95084.0,0.0802]
[1733245644109,0.00232691,95090.0,95084.0,0.0802]
[1733245644622,0.210338,95085.0,95084.0,0.0802]
[1733245644838,0.210335,95086.0,95084.0,0.0802]
[1733245645062,0.15232691,95087.0,95084.0,0.0802]
[1733245645303,0.00232691,95087.0,95084.0,0.0802]
[1733245645582,0.15,95092.0,95084.0,0.0802]
[1733245645847,0.00232691,95089.0,95084.0,0.0802]
[1733245646129,0.360268,95117.0,95105.0,0.1279]
[1733245646344,0.0023264,95113.0,95105.0,0.1279]
[1733245646577,0.210231,95134.0,95105.0,0.1279]
[1733245646578,0.02744497,95119.0,95105.0,0.1279]
[1733245646806,0.210279,95112.0,95109.0,0.01496]
[1733245647031,0.210282,95110.0,95109.0,0.01496]
[1733245647291,0.00232631,95111.0,95109.0,0.01496]
[1733245647549,0.008728,95114.0,95113.0,0.01496]
[1733245648433,0.001728,95114.0,95113.0,0.01496]
[1733245648891,0.00190431,95114.0,95113.0,0.01496]
[1733245649584,0.00190431,95114.0,95113.0,0.002]
[1733245650051,0.210276,95113.0,95107.0,0.01496]
[1733245650328,0.210287,95108.0,95107.0,0.01496]
[1733245650577,0.00232636,95112.0,95107.0,0.01496]
[1733245650578,0.21028,95111.0,95107.0,0.01496]
[1733245650800,0.210285,95109.0,95107.0,0.01496]
[1733245651496,0.00841786,95108.0,95107.0,0.01496]
[1733245652720,0.00841786,95108.0,95107.0,0.01596]
[1733245652979,0.0060915,95108.0,95107.0,0.01596]
[1733245653235,0.0060915,95108.0,95107.0,0.01496]
[1733245653495,0.00190431,95114.0,95113.0,0.353036]
[1733245653714,0.210212,95142.0,95138.0,0.01496]
[1733245653931,0.210216,95140.0,95138.0,0.01496]
[1733245655313,0.210216,95140.0,95135.0,0.01496]
[1733245655542,0.210231,95133.0,95132.0,0.1278]
[1733245656718,0.210256,95122.0,95121.0,0.083]
[1733245656929,0.21258208,95122.0,95121.0,0.083]
[1733245657184,0.210256,95122.0,95121.0,0.083]
[1733245657408,0.210252,95124.0,95121.0,0.083]
[1733245657634,0.21256289,95131.0,95126.0,0.01496]
[1733245658136,0.42279989,95131.0,95126.0,0.01496]
[1733245658354,0.420474,95131.0,95126.0,0.01496]
[1733245658582,0.42048,95129.0,95126.0,0.01496]
[1733245660152,0.42748,95129.0,95126.0,0.01496]
[1733245661265,0.210245,95127.0,95126.0,0.01496]
[1733245661725,0.2158288,95127.0,95126.0,0.01496]
[1733245662382,0.0055838,95127.0,95126.0,0.01496]
[1733245662615,0.0055838,95127.0,95126.0,0.01596]
[1733245662832,0.001,95127.0,95126.0,0.01596]
[1733245663792,0.001,95127.0,95126.0,0.09216]
[1733245665110,0.001,95127.0,95126.0,0.001]
[1733245665319,0.00332587,95127.0,95126.0,0.001]
[1733245668885,0.10803846,95127.0,95126.0,0.001]
[1733245669370,0.10976666,95127.0,95126.0,0.001]
[1733245669793,0.25976666,95127.0,95126.0,0.001]
[1733245670021,0.25744079,95127.0,95126.0,0.001]
[1733245670477,0.0027282,95127.0,95126.0,0.001]
[1733245671126,0.00505422,95127.0,95121.0,0.01496]
[1733245671341,0.0027282,95127.0,95121.0,0.01496]
[1733245671763,0.0057282,95127.0,95126.0,0.01496]
[1733245671987,0.2149732,95127.0,95126.0,0.09006]
[1733245672226,0.0047282,95127.0,95126.0,0.09006]
[1733245672457,0.0017282,95127.0,95126.0,0.09006]
[1733245672686,0.0047282,95127.0,95126.0,0.09006]
[1733245672911,0.0017282,95127.0,95126.0,0.09006]
[1733245674758,0.0017282,95127.0,95126.0,0.09306]
[1733245677235,0.0017282,95127.0,95126.0,0.14156]
[1733245678965,0.0017282,95127.0,95126.0,0.16456]
[1733245680176,0.2119732,95127.0,95126.0,0.16456]
[1733245680387,0.2119732,95127.0,95126.0,0.1266]
[1733245680588,0.2119732,95127.0,95126.0,0.003]
[1733245680809,0.0017282,95127.0,95126.0,0.47227259]
[1733245681017,0.210162,95165.0,95141.0,0.11476]
[1733245681193,0.12745448,95170.0,95159.0,0.01496]
[1733245681194,0.210169,95162.0,95159.0,0.01496]
[1733245681402,0.12745448,95170.0,95168.0,0.01496]
[1733245681649,0.21032808,95170.0,95169.0,0.01496]
[1733245682323,0.00017708,95170.0,95169.0,0.01496]
[1733245682744,0.00517708,95170.0,95169.0,0.01496]
[1733245682938,0.00517708,95170.0,95164.0,0.0805]
[1733245682939,0.210161,95165.0,95164.0,0.09546]
[1733245683133,0.00517708,95170.0,95153.0,0.0805]
[1733245683134,0.210183,95155.0,95153.0,0.0805]
[1733245683391,0.210183,95155.0,95141.0,0.0728]
[1733245683392,0.210181,95156.0,95155.0,0.01496]
[1733245683577,0.210181,95156.0,95144.0,0.0805]
[1733245683578,0.10471259,95163.0,95148.0,0.01496]
[1733245683789,0.210194,95150.0,95148.0,0.01496]
[1733245683988,0.19111661,95165.0,95144.0,0.0805]
[1733245683989,0.19111661,95165.0,95156.0,0.01496]
[1733245684191,0.210178,95157.0,95156.0,0.01496]
[1733245684412,0.00017708,95170.0,95164.0,0.01496]
[1733245684622,0.210161,95166.0,95164.0,0.01496]
[1733245686018,0.210161,95166.0,95164.0,0.01696]
[1733245686440,0.19129369,95170.0,95169.0,0.01496]
[1733245686687,0.00017708,95170.0,95169.0,0.01496]
[1733245687949,0.00017708,95170.0,95169.0,0.34453237]
[1733245688189,0.001728,95204.0,95202.0,0.01496]
[1733245688604,0.210077,95203.0,95202.0,0.01496]
[1733245689513,0.00232404,95203.0,95193.0,0.01496]
[1733245689760,0.210097,95194.0,95193.0,0.01496]
[1733245690028,0.00232427,95202.0,95198.0,0.01496]
[1733245690266,0.1952936,95203.0,95182.0,0.210122]
[1733245690267,0.00417699,95203.0,95202.0,0.01496]
[1733245690904,0.00617699,95203.0,95202.0,0.01496]
[1733245691115,0.00217699,95203.0,95202.0,0.01496]
[1733245691345,0.00717699,95203.0,95202.0,0.01596]
[1733245692237,0.01017699,95203.0,95202.0,0.01596]
[1733245692747,0.01017699,95203.0,95202.0,0.09546]
[1733245692958,0.01017699,95203.0,95202.0,0.001]
[1733245693177,0.01250101,95203.0,95202.0,0.001]
[1733245693620,0.00890499,95203.0,95202.0,0.001]
[1733245693838,0.00890499,95203.0,95202.0,0.01596]
[1733245694054,0.01090499,95203.0,95202.0,0.01596]
[1733245694503,0.00890499,95203.0,95202.0,0.001]
[1733245694760,0.01122888,95203.0,95202.0,0.001]
[1733245694972,0.26594147,95203.0,95202.0,0.001]
[1733245695247,0.210121,95183.0,95182.0,0.01496]
[1733245695493,0.210142,95174.0,95169.0,0.01496]
[1733245695699,0.00232501,95173.0,95158.0,0.01496]
[1733245695914,0.00232501,95173.0,95154.0,0.01496]
[1733245695915,0.19111661,95168.0,95154.0,0.01496]
[1733245696128,0.19111661,95168.0,95150.0,0.1275]
[1733245696129,0.210178,95157.0,95156.0,0.01496]
[1733245696854,0.210178,95157.0,95156.0,0.01513708]
[1733245697781,0.21250307,95157.0,95156.0,0.00017708]
[1733245698019,0.21250307,95157.0,95156.0,0.01713708]
[1733245698657,0.21250307,95157.0,95156.0,0.01513708]
[1733245699634,0.210153,95169.0,95157.0,0.03796]
[1733245699874,0.210163,95164.0,95162.0,0.01496]
[1733245700120,0.0023249,95168.0,95156.0,0.00017708]
[1733245700121,0.210167,95162.0,95157.0,0.01496]
[1733245700355,0.210176,95158.0,95157.0,0.01496]
[1733245702215,0.210176,95158.0,95156.0,0.00217708]
[1733245702216,0.31488859,95158.0,95156.0,0.00217708]
[1733245702441,0.10703816,95157.0,95156.0,0.00217708]
[1733245702658,0.210176,95158.0,95156.0,0.00217708]
[1733245702890,0.210176,95158.0,95156.0,0.00017708]
[1733245703136,0.210172,95160.0,95159.0,0.01496]
[1733245704722,0.21016,95166.0,95162.0,0.01496]
[1733245704986,0.15,95180.0,95167.0,0.01496]
[1733245705234,0.21247687,95169.0,95164.0,0.01496]
[1733245705433,0.21247687,95169.0,95159.0,0.01596]
[1733245705688,0.210168,95162.0,95159.0,0.01596]
[1733245705920,0.210168,95162.0,95159.0,0.01496]
[1733245706094,0.00232504,95161.0,95160.0,0.01496]
[1733245706605,0.21017,95161.0,95160.0,0.01496]
[1733245706849,0.210162,95165.0,95164.0,0.01496]
[1733245707073,0.210162,95165.0,95156.0,0.00017708]
[1733245707074,0.005,95169.0,95168.0,0.225114]
[1733245707283,0.210098,95194.0,95193.0,0.01496]
[1733245707531,0.210087,95199.0,95197.0,0.01496]
[1733245708684,0.00232425,95198.0,95197.0,0.01496]
[1733245709768,0.21026399,95199.0,95197.0,0.01496]
[1733245710008,0.21026399,95199.0,95176.0,0.0018594]
[1733245710009,0.00017699,95199.0,95198.0,0.01496]
[1733245711415,0.00017699,95199.0,95198.0,0.34267259]
[1733245712099,0.00317699,95199.0,95198.0,0.34267259]
[1733245712539,0.00017699,95199.0,95198.0,0.34267259]
[1733245712846,0.00217699,95199.0,95198.0,0.34367259]
[1733245713059,0.00217699,95199.0,95198.0,0.14367259]
[1733245713303,0.00217699,95199.0,95198.0,0.34453149]
[1733245713519,0.00217699,95199.0,95198.0,0.34267259]
[1733245713743,0.00217699,95199.0,95198.0,0.34767259]
[1733245714301,0.00217699,95199.0,95198.0,0.54267259]
[1733245714506,0.00417699,95199.0,95198.0,0.55567259]
[1733245714718,0.00117699,95199.0,95198.0,0.54867259]
[1733245714933,0.00217699,95199.0,95198.0,0.55767259]
[1733245715160,0.00217699,95199.0,95198.0,0.54867259]
[1733245715381,0.00117699,95199.0,95198.0,0.54867259]
[1733245715630,0.00117699,95199.0,95198.0,0.55167259]
[1733245715877,0.00217699,95199.0,95198.0,0.55867259]
[1733245716333,0.00217699,95199.0,95198.0,0.03096]
[1733245717214,0.00117699,95199.0,95198.0,0.02396]
[1733245717457,0.00017699,95199.0,95198.0,0.01496]
[1733245717678,0.00217699,95199.0,95198.0,0.02996]
[1733245720954,0.00117699,95199.0,95198.0,0.02096]
[1733245721427,0.00117699,95199.0,95198.0,0.008]
[1733245721650,0.00350118,95199.0,95198.0,0.006]
[1733245721866,0.10721414,95199.0,95198.0,0.002]
[1733245722081,0.31730014,95199.0,95198.0,0.002]
[1733245722340,0.31497558,95199.0,95198.0,0.004]
[1733245722546,0.46497558,95199.0,95198.0,0.004]